[Event "Polish Youth B18 Championship 2023"]
[Site "Jastrzebia Gora"]
[Date "2023.03.18"]
[Round "8.13"]
[White "Stachecki, Mikolaj"]
[Black "Lis, Maksymilian"]
[Result "1-0"]
[ECO "B42"]
[WhiteElo "2015"]
[BlackElo "1784"]
[Annotator "TA"]
[PlyCount "95"]
[EventDate "2023.03.11"]
[EventType "swiss"]
[EventCountry "POL"]
[SourceTitle "playchess.com"]
[Source "ChessBase"]
[SourceQuality "1"]
[TimeControl "40/5400+30:1800+30"]

{[%evp 12,95,36,44,69,39,31,10,14,21,22,16,18,22,11,16,9,-8,18,33,29,28,22,10,15,29,17,0,0,0,0,-20,-21,-18,-22,-22,0,0,8,12,0,0,0,-47,-45,-73,-57,-63,0,-35,0,0,0,0,305,309,309,309,309,309,309,309,309,309,310,310,383,167,691,167,175,175,29986,29987,29987,29988,29993,29994,29994,29995,29995,29996,29996,29997,29997,29998]} 1. e4 {[%emt 0:00:04]} c5 {[%emt 0:00:05]} 2. Nf3 {[%emt 0:00:07]} e6 {[%emt 0:00:07]} 3. d4 {[%emt 0:00:04]} cxd4 {[%emt 0:00:05]} 4. Nxd4 {[%emt 0:00:05]} a6 {[%emt 0:00:06]} 5. Bd3 {[%emt 0:00:07]} Bc5 {[%emt 0:00:04]} 6. Nb3 {[%emt 0:00:54]} Ba7 {[%emt 0:00:06]} 7. O-O {[%emt 0:02:02]} d6 {[%emt 0:01:02] B42: Sicilian: Kan Variation: 5 Bd3.} 8. Qe2 {[%emt 0:04:45]} (8. Qg4 $5 {[%cal Rg4g7]}) 8... Nf6 {[%emt 0:00:28] [#]} 9. Bf4 $146 {[%emt 0:02:56][%cal Of4d6]} ({Predecessor:} 9. Be3 e5 10. N1d2 O-O 11. Kh1 Nc6 12. Rad1 Qe7 13. Bxa7 Rxa7 14. Nc4 b5 15. Ne3 {0-1 Polgar,J (2711)-Kamsky,G (2729) Wch Blitz 3th 2008 (6)}) 9... Nc6 {[%emt 0:00:42] The position is equal.} 10. c4 {[%emt 0:02:54]} e5 {[%emt 0:00:04]} 11. Be3 {[%emt 0:00:19]} Bxe3 {[%emt 0:00:04]} 12. Qxe3 {[%emt 0:00:45]} Be6 {[%emt 0:00:05]} 13. Nc3 {[%emt 0:03:47]} Rc8 {[%emt 0:00:19]} 14. a3 {[%emt 0:04:23]} Na5 {[%emt 0:01:16]} (14... Ng4 {seems wilder.} 15. Qf3 Qb6 16. Qd1 O-O) 15. Nxa5 {[%emt 0:00:45]} Qxa5 {[%emt 0:00:05]} 16. b4 {[%emt 0:05:43]} Qc7 {[%emt 0:00:08]} 17. Nd5 {[%emt 0:00:19]} Bxd5 {[%emt 0:00:04]} 18. exd5 {[%emt 0:02:44]} O-O {[%emt 0:01:06]} 19. Bf5 {[%emt 0:18:16]} Ra8 {[%emt 0:00:05]} 20. Rfc1 {[%emt 0:00:34]} a5 {[%emt 0:00:18]} 21. Qb3 {[%emt 0:01:21]} g6 {[%emt 0:06:19]} 22. Bh3 {[%emt 0:01:35]} axb4 {[%emt 0:00:06]} 23. axb4 {[%emt 0:00:09]} b6 {[%emt 0:00:05]} 24. g3 {[%emt 0:09:51]} Ra7 {[%emt 0:00:38]} 25. Rxa7 {[%emt 0:02:41]} Qxa7 {[%emt 0:00:18]} 26. Qe3 {[%emt 0:07:54]} Ra8 {[%emt 0:03:27]} 27. Bg2 {[%emt 0:01:10]} (27. c5 $11 bxc5 28. bxc5) 27... Qa3 $15 {[%emt 0:02:39]} 28. Qd2 {[%emt 0:01:09]} Ra4 {[%emt 0:02:03]} 29. Rb1 {[%emt 0:00:18][%cal Bc1b1,Bb1b2,Bb2b8][%mdl 32]} Nh5 {[%emt 0:02:55]} (29... Qa2 $15 30. Qxa2 Rxa2) 30. Bf1 {[%emt 0:11:06]} Qa2 {[%emt 0:07:10]} 31. Rb2 {[%emt 0:02:04]} Qa1 {[%emt 0:00:31]} 32. Qc2 {[%emt 0:00:45]} h6 $2 {[%emt 0:01:10][%mdl 8192] [#] Black is on the road to losing.} (32... Ra8 $11 {and Black has nothing to worry.}) 33. c5 $1 $18 {[%emt 0:06:56]} bxc5 {[%emt 0:00:04]} 34. bxc5 {[%emt 0:00:04]} dxc5 {[%emt 0:00:07]} 35. Rb8+ {[%emt 0:00:03]} Kh7 {[%emt 0:02:14]} 36. Qxc5 {[%emt 0:00:07] White threatens Qf8 and mate.} Ra8 {[%emt 0:00:32]} 37. Rxa8 {[%emt 0:00:42]} Qxa8 {[%emt 0:00:04][%mdl 4096] Endgame KQB-KQN} 38. d6 {[%emt 0:00:35] d7 would kill now.} Ng7 {[%emt 0:02:04]} 39. d7 {[%emt 0:04:53]} (39. Qc7 $142 Qf3 40. Bc4) 39... Qd8 $2 {[%emt 0:01:24]} (39... Ne6 40. Qe7 Nd8 41. Qxe5 Qa7) 40. Qc8 $2 {[%emt 0:00:00]} ({And not} 40. Qxe5 Qxd7 41. Bc4 Ne6 $11) (40. Qc6 {Intending Bc4 and mate.} Ne6 41. Bc4) 40... Ne6 {[%emt 0:00:00]} 41. Bc4 {[%emt 0:00:55]} Qa5 $2 {[%emt 0:00:23] [#]} (41... Qb6 $18) 42. Bxe6 {[%emt 0:02:17] White mates.} fxe6 {[%emt 0:00:11]} 43. d8=Q {[%cal Rc8d7][%mdl 64] Discovered Attack} Qe1+ {[%emt 0:00:04]} 44. Kg2 {[%emt 0:02:37][%cal Rd8c7]} Qe4+ {[%emt 0:00:04]} 45. f3 {[%emt 0:03:04][%csl Gc8][%cal Rd8g8]} Qe2+ {[%emt 0:00:04]} 46. Kh3 {[%emt 0:00:03][%csl Gc8][%cal Rd8g8]} Qf1+ {[%emt 0:00:04]} 47. Kg4 {[%emt 0:00:06][%cal Rd8e7]} h5+ {[%emt 0:00:02]} 48. Kg5 {[%emt 0:00:04] Weighted Error Value: White=0.30/Black=0.61} 1-0

[Event "Polish Youth B18 Championship 2023"]
[Site "Jastrzebia Gora"]
[Date "2023.03.18"]
[Round "8.14"]
[White "Krasniewski, Szymon"]
[Black "Budzisz, Adrian"]
[Result "0-1"]
[ECO "D38"]
[WhiteElo "1771"]
[BlackElo "2069"]
[Annotator "TA"]
[PlyCount "54"]
[EventDate "2023.03.11"]
[EventType "swiss"]
[EventCountry "POL"]
[SourceTitle "playchess.com"]
[Source "ChessBase"]
[SourceQuality "1"]
[TimeControl "40/5400+30:1800+30"]

{[%evp 12,54,8,-2,-10,-15,0,6,6,0,0,8,10,-16,-5,-10,0,-47,-54,-72,-66,-54,-50,-138,-145,-131,-137,-137,-122,-140,-37,-67,-29,-504,-506,-495,-495,-1419,-1404,-1419,-1419,-1412,-1359,-29997,-29998]} 1. d4 {[%emt 0:00:04]} Nf6 {[%emt 0:01:18]} 2. Nf3 {[%emt 0:00:25]} e6 {[%emt 0:00:17]} 3. c4 {[%emt 0:00:09]} d5 {[%emt 0:00:06]} 4. Nc3 {[%emt 0:00:35]} Bb4 {[%emt 0:00:05]} 5. Bd2 {[%emt 0:01:50]} O-O {[%emt 0:00:23]} 6. e3 {[%emt 0:00:09]} c5 {[%emt 0:00:55]} 7. dxc5 {[%emt 0:01:29]} Bxc5 {[%emt 0:00:33] E51: Nimzo-Indian: Rubinstein: 4...0-0 5 Nf3 d5.} 8. Be2 {[%emt 0:08:17]} Nc6 {[%emt 0:00:55]} 9. O-O {[%emt 0:02:40]} b6 {[%emt 0:02:00] The position is equal.} 10. Rc1 {[%emt 0:14:13]} Bb7 {[%emt 0:00:22]} 11. cxd5 {[%emt 0:02:01]} Nxd5 {[%emt 0:01:02][%cal Bf6d5,Bd5e7,Be7g6,Bg6e5,Be5g4,Bg4f2][%mdl 32] [#]} 12. e4 $146 {[%emt 0:03:41]} ({Predecessor:} 12. Nxd5 exd5 13. a3 Qe7 14. Bc3 Rfd8 15. Nd4 Nxd4 16. Bxd4 Rac8 17. Bf3 Bd6 18. Rxc8 Rxc8 {0-1 Quinones,F (1697)-Pai,J (2031) Palmira op 2018 (6)}) 12... Nde7 {[%emt 0:05:07]} 13. Na4 {[%emt 0:17:11]} Bd6 {[%emt 0:01:26]} 14. Bc4 {[%emt 0:06:45]} (14. g3 $11) 14... Ng6 $15 {[%emt 0:09:37]} 15. Qe2 {[%emt 0:04:54]} Nce5 {[%emt 0:03:48]} 16. Nxe5 {[%emt 0:01:19]} Nxe5 {[%emt 0:01:22]} 17. Ba6 {[%emt 0:15:30]} (17. Bb3 $1 $15) 17... Bxa6 $17 {[%emt 0:10:06]} 18. Qxa6 {[%emt 0:00:02] [#]} Ng4 $1 {[%emt 0:00:11]} 19. f4 {[%emt 0:07:31] [#]} Bc5+ $1 {[%emt 0:00:11][%mdl 576] Discovered Attack, Decoy} 20. Nxc5 {[%emt 0:00:07] aiming for Nb3.} Qd4+ {[%emt 0:00:12]} (20... Qxd2 $17 21. Qd3 Rfd8 22. Qxd2 Rxd2) 21. Kh1 $15 {[%emt 0:00:24][%cal Oa6e2] Qe2! would be deadly.} Qxd2 {[%emt 0:00:52]} 22. Nd3 {[%emt 0:01:22][%mdl 8192] This costs White the game.} (22. Nb3 $11 Qe3 23. h3) 22... Rad8 $19 {[%emt 0:02:07]} ({Less strong is} 22... Ne3 23. Rf2 Qa5 24. Qxa5 bxa5 25. Re2 $14) 23. Ne5 {[%emt 0:06:39]} Nf2+ {[%emt 0:01:07][%mdl 64] Deflection} 24. Rxf2 {[%emt 0:01:13]} (24. Kg1 $142 Nxe4 25. Rb1 Qe3+ 26. Kh1 Nf2+ 27. Rxf2 Qxf2 28. Nf3) 24... Qxc1+ {[%emt 0:00:18]} 25. Rf1 {[%emt 0:00:07]} Rd1 {[%emt 0:00:06]} 26. Kg1 {[%emt 0:00:14]} Rfd8 {[%emt 0:00:25] ( -> ...Qc5+)} 27. Rxd1 {[%emt 0:00:34]} Qe3+ {[%emt 0:00:20] Weighted Error Value: White=0.82/Black=0.15 (very precise)} 0-1

[Event "Polish Youth B18 Championship 2023"]
[Site "Jastrzebia Gora"]
[Date "2023.03.18"]
[Round "8.15"]
[White "Syrkiewicz, Michal"]
[Black "Zeissel, Andrzej"]
[Result "1-0"]
[ECO "B40"]
[WhiteElo "2000"]
[BlackElo "1717"]
[Annotator "TA"]
[PlyCount "80"]
[EventDate "2023.03.11"]
[EventType "swiss"]
[EventCountry "POL"]
[SourceTitle "playchess.com"]
[Source "ChessBase"]
[SourceQuality "1"]
[TimeControl "40/5400+30:1800+30"]

{[%evp 16,80,41,0,39,25,30,0,0,0,0,0,0,0,0,-11,0,-6,6,0,38,-48,-14,-26,94,77,93,48,205,203,185,182,261,275,272,280,260,246,302,272,334,333,465,364,480,459,434,445,595,600,831,826,844,835,936,922,1760,1618,29987,29988,29988,29989,29989,29989,29989,29990,29996]} 1. e4 {[%emt 0:00:13]} c5 {[%emt 0:00:04]} 2. Nf3 {[%emt 0:00:03]} e6 {[%emt 0:00:04]} 3. d4 {[%emt 0:00:03]} cxd4 {[%emt 0:00:04]} 4. Nxd4 {[%emt 0:00:03]} Nf6 {[%emt 0:00:06]} 5. Nc3 {[%emt 0:00:06]} Nc6 {[%emt 0:00:03]} 6. Nxc6 {[%emt 0:03:51]} bxc6 {[%emt 0:00:03]} 7. e5 {[%emt 0:00:17]} Nd5 8. Ne4 {[%emt 0:00:07]} Qc7 {[%emt 0:00:06]} 9. f4 $1 {[%emt 0:01:33]} Rb8 {[%emt 0:00:09] B45: Sicilian Four Knights.} 10. Bd3 {[%emt 0:07:12]} Qb6 {[%emt 0:00:08]} 11. Qe2 {[%emt 0:06:05]} (11. c4 {looks sharper.} Bb4+ 12. Ke2 f5 13. Ng5) 11... Be7 {[%emt 0:07:39] The position is equal.} 12. c4 {[%emt 0:12:37]} f5 {[%emt 0:05:13]} 13. Nf2 {[%emt 0:12:47] [#]} Bb4+ $146 {[%emt 0:10:50]} ({Predecessor:} 13... Nb4 14. Be3 Bc5 15. Bxc5 Qxc5 16. b3 Qd4 17. Rd1 Qxf4 18. Bb1 c5 19. O-O Nc6 {0-1 Zeller,F (2361)-Kurmann,O (2437) SUI-chT Switzerland 2021 (5.1)}) 14. Kf1 {[%emt 0:02:20]} Ne7 {[%emt 0:02:34]} 15. a3 {[%emt 0:05:16]} Bc5 {[%emt 0:00:33]} 16. b4 {[%emt 0:00:25]} (16. Rb1 $5 {[%cal Rb2b4]}) 16... Bd4 {[%emt 0:11:06]} 17. Rb1 $36 {[%emt 0:00:48][%mdl 2048] White has good play.} Ba6 {[%emt 0:09:02]} 18. Nd1 {[%emt 0:09:59]} ({White should play} 18. h4 $14) 18... O-O {[%emt 0:18:38]} (18... g5 {seems wilder.} 19. Ne3 gxf4 20. Nc2 Rg8) 19. Nb2 {[%emt 0:07:14]} Bxb2 {[%emt 0:05:16]} (19... g5 $11 {remains equal.}) 20. Rxb2 $16 {[%emt 0:01:15]} Qc7 {[%emt 0:10:53]} 21. Be3 {[%emt 0:01:48]} Ng6 $2 {[%emt 0:03:38] [#] Black is weak on the dark squares. A mistake that costs the game.} (21... d6 $14) 22. g3 $1 $18 {[%emt 0:01:29]} d6 {[%emt 0:04:53]} 23. exd6 {[%emt 0:01:30]} Qd7 {[%emt 0:00:26]} (23... Qxd6 {was worth a try.} 24. Bc5 {[%mdl 64] Skewer, Deflection} (24. Bxa7 Rbd8 $11) 24... Qd7) 24. c5 {[%emt 0:03:03]} Bxd3 {[%emt 0:00:03]} 25. Qxd3 {[%emt 0:00:04]} e5 {[%emt 0:00:04]} 26. Qc4+ {[%emt 0:01:43]} Kh8 {[%emt 0:00:01]} 27. Kf2 {[%emt 0:01:44]} Rbe8 {[%emt 0:00:19]} 28. Re1 {[%emt 0:01:01]} Re6 {[%emt 0:03:04]} 29. Rbe2 {[%emt 0:00:30]} Rfe8 {[%emt 0:00:12] [#]} 30. Bd4 $1 {[%emt 0:01:11][%cal Rd4e5][%mdl 512]} e4 {[%emt 0:00:41]} 31. Rb1 {[%emt 0:01:16]} Qd8 {[%emt 0:01:41]} 32. Qa6 {[%emt 0:01:20]} Nxf4 {[%emt 0:00:19]} 33. gxf4 {[%emt 0:00:09]} Qh4+ {[%emt 0:01:46]} 34. Ke3 {[%emt 0:00:13][%cal Bf2e3,Be3d2,Bd2c3][%mdl 32]} Qh3+ {[%emt 0:00:16]} 35. Kd2 {[%emt 0:00:12]} e3+ {[%emt 0:00:21]} 36. Kc3 {[%emt 0:00:11]} Qf3 {[%emt 0:00:34]} 37. Rg1 {[%emt 0:00:55] White mates.} Rg6 {[%emt 0:00:13]} 38. Rxg6 {[%emt 0:00:17]} hxg6 {[%emt 0:00:05] [#]} 39. Qxa7 $1 {[%emt 0:00:20][%csl Gd4][%cal Ra7g7]} Rg8 {[%emt 0:00:01]} 40. Rxe3 {[%emt 0:00:00]} Qd1 {[%emt 0:00:00] Beautiful play by Syrkiewicz!   Weighted Error Value: White=0.11 (very precise) /Black=0.68} 1-0

[Event "Polish Youth B18 Championship 2023"]
[Site "Jastrzebia Gora"]
[Date "2023.03.18"]
[Round "8.16"]
[White "Bem, Tymoteusz"]
[Black "Kitewski, Bartosz"]
[Result "0-1"]
[ECO "D38"]
[WhiteElo "1748"]
[BlackElo "1968"]
[Annotator "TA"]
[PlyCount "78"]
[EventDate "2023.03.11"]
[EventType "swiss"]
[EventCountry "POL"]
[SourceTitle "playchess.com"]
[Source "ChessBase"]
[SourceQuality "1"]
[TimeControl "40/5400+30:1800+30"]

{[%evp 13,78,5,40,25,39,37,43,46,58,58,80,61,110,18,50,48,45,26,52,19,27,0,8,0,36,8,8,8,12,8,10,12,35,-17,-18,-21,6,9,78,-104,-112,-187,-10,-217,-211,-214,-228,-200,-184,-200,-171,-215,-215,-215,-156,-233,-232,-1037,-1038,-793,-524,-916,-908,-909,-889,-845,-843]} 1. d4 {[%emt 0:00:37]} Nf6 {[%emt 0:00:15]} 2. c4 {[%emt 0:00:42]} e6 {[%emt 0:00:08]} 3. Nf3 {[%emt 0:00:29]} d5 {[%emt 0:00:06]} 4. Nc3 {[%emt 0:00:34]} Bb4 {[%emt 0:00:05]} 5. Qa4+ {[%emt 0:00:04]} Nc6 {[%emt 0:00:05]} 6. Bd2 {[%emt 0:00:08]} O-O {[%emt 0:00:39]} 7. e3 {[%emt 0:00:25] 7.a3 is more advanced technology.} a6 {[%emt 0:02:39]} 8. a3 {[%emt 0:01:09] D38: Queen's Gambit Declined: Ragozin Defence (4 Nf3 Bb4).} Bxc3 {[%emt 0:00:37]} 9. Bxc3 {[%emt 0:00:09]} Ne4 {[%emt 0:02:36]} 10. Qc2 {[%emt 0:02:19] White is slightly better.} b6 {[%emt 0:03:11]} 11. Bd3 {[%emt 0:04:23]} f5 {[%emt 0:01:52] [#]} 12. b4 $146 {[%emt 0:11:43]} ({Predecessor:} 12. O-O Bb7 13. b4 Nxc3 14. Qxc3 dxc4 15. Bxc4 Qd6 16. Rac1 Ne7 17. Ne5 Rac8 18. Rfd1 {0-1 Samojlov,A (2331)-Muter,D (2190) Krakow op-A 19th 2008 (9)}) 12... Bd7 {[%emt 0:11:08]} (12... dxc4 $14 13. Bxc4 Ne7) 13. b5 {[%emt 0:04:22]} (13. O-O $16) 13... axb5 {[%emt 0:07:03]} 14. cxb5 {[%emt 0:00:16]} Na7 {[%emt 0:02:54]} 15. a4 {[%emt 0:04:09]} (15. Bb4 $5 {[%cal Rb4f8]}) 15... c6 {[%emt 0:01:01][%cal Rc6b5]} 16. bxc6 {[%emt 0:21:41]} (16. Bb4 {with more complications.} Re8 17. Ne5 cxb5 18. f3) 16... Nxc6 {[%emt 0:00:09]} 17. Bd2 {[%emt 0:00:51]} Rc8 {[%emt 0:26:29][%cal Oc6d4] aiming for ...Nxd4!} 18. Qb2 {[%emt 0:02:21]} Be8 {[%emt 0:00:08]} 19. Ba6 {[%emt 0:03:51]} Ra8 {[%emt 0:02:01]} 20. Bb5 {[%emt 0:03:07]} Na5 {[%emt 0:11:27]} 21. Bxa5 {[%emt 0:03:50]} bxa5 {[%emt 0:00:11]} 22. O-O {[%emt 0:01:26]} Rb8 {[%emt 0:00:16]} 23. Rab1 {[%emt 0:04:23]} (23. Rfb1 $14) 23... Nd6 $11 {[%emt 0:01:40]} 24. Qe2 {[%emt 0:02:39]} Bxb5 {[%emt 0:04:43]} 25. axb5 {[%emt 0:00:09]} Qb6 {[%emt 0:00:23]} (25... Nc4 $11) 26. Rb3 $2 {[%emt 0:09:49] [#]} (26. Ne5 $16) 26... a4 $1 $17 {[%emt 0:01:47] Black is more active.} 27. Rb4 {[%emt 0:02:30]} (27. Rb2 $17) 27... Nxb5 $2 {[%emt 0:02:21]} (27... Qa5 $19 28. Rbb1 Rxb5) 28. Rxa4 {[%emt 0:01:14] This costs White the game.} (28. Rfb1 $1 $11 Nc3 29. Rxb6 (29. Qc2 $2 Qxb4 30. Rxb4 Rxb4 $19) 29... Nxe2+ 30. Kf1 Rxb6 31. Rxb6) 28... Nc3 $1 $19 {[%emt 0:00:09][%csl LRa4,LRe2]} 29. Qc2 {[%emt 0:00:01]} Nxa4 {[%emt 0:00:29]} 30. Qxa4 {[%emt 0:00:02]} Ra8 {[%emt 0:03:52]} 31. Qd1 {[%emt 0:00:48]} Ra2 {[%emt 0:01:19]} 32. g3 {[%emt 0:00:30]} Rfa8 {[%emt 0:02:14]} 33. Ne5 {[%emt 0:00:56]} g6 {[%emt 0:00:59][%cal Bg7g6,Bg6g5][%mdl 32] Wards off Qh5} 34. Qf3 {[%emt 0:00:50]} (34. Qc1 $17 {was worth a try.}) 34... Ra1 {[%emt 0:00:25]} 35. Rxa1 {[%emt 0:09:59]} (35. g4) 35... Rxa1+ {[%emt 0:00:05] Black is clearly winning.} 36. Kg2 {[%emt 0:00:01]} Qb1 {[%emt 0:05:55][%csl Ga1][%cal Rb1f1] [#]} 37. Qe2 {[%emt 0:00:28] Repels Qf1+} g5 {[%emt 0:00:58] And now ...Kg7 would win.} 38. Kh3 {[%emt 0:06:00]} Kg7 {[%emt 0:00:54] ( -> ...Ra2)} 39. g4 Ra2 {[%mdl 64] Skewer.   Weighted Error Value: White=0.76/Black=0.35} 0-1

[Event "Polish Youth B18 Championship 2023"]
[Site "Jastrzebia Gora"]
[Date "2023.03.18"]
[Round "8.17"]
[White "Karut, Kacper"]
[Black "Pisarek, Jan"]
[Result "0-1"]
[ECO "B75"]
[WhiteElo "1904"]
[BlackElo "1931"]
[Annotator "TA"]
[PlyCount "64"]
[EventDate "2023.03.11"]
[EventType "swiss"]
[EventCountry "POL"]
[SourceTitle "playchess.com"]
[Source "ChessBase"]
[SourceQuality "1"]
[TimeControl "40/5400+30:1800+30"]

{[%evp 22,64,13,19,27,24,33,-105,-106,-107,-100,-104,-92,-157,-164,-168,-147,-185,-187,-206,-204,-234,-247,-277,-276,-320,-306,-291,-301,-330,-320,-356,-353,-341,-327,-389,-374,-547,-537,-706,-700,-824,-823,-743,-690]} 1. e4 {[%emt 0:00:02]} c5 {[%emt 0:00:06]} 2. Nf3 {[%emt 0:00:05]} d6 {[%emt 0:00:05]} 3. d4 {[%emt 0:00:19]} cxd4 {[%emt 0:00:06]} 4. Nxd4 {[%emt 0:00:03]} Nf6 {[%emt 0:00:06]} 5. Nc3 {[%emt 0:00:13]} g6 {[%emt 0:00:07]} 6. f3 {[%emt 0:00:48]} Bg7 {[%emt 0:00:06]} 7. Be3 {[%emt 0:00:04]} Nc6 {[%emt 0:00:06]} 8. Qd2 {[%emt 0:00:22]} O-O {[%emt 0:00:08]} 9. g4 {[%emt 0:00:44]} Be6 {[%emt 0:00:14]} 10. Nxe6 {[%emt 0:01:09]} fxe6 {[%emt 0:00:07]} 11. O-O-O {[%emt 0:01:27]} Ne5 {[%emt 0:00:21]} 12. Be2 {[%emt 0:05:06] g5 is the strong threat.} Qc8 {[%emt 0:00:24] B76: Sicilian Dragon: Yugoslav Attack, 9 g4 and 9 0-0-0.} 13. h4 {[%emt 0:06:35]} Nfd7 {[%emt 0:00:53]} 14. Bh6 {[%emt 0:23:40]} (14. f4 $14 {keeps the upper hand.} Nc4 15. Bxc4 Qxc4 16. e5) 14... Nxf3 $17 {[%emt 0:12:39] Black is better.} 15. Bxf3 {[%emt 0:08:57]} Bxc3 {[%emt 0:29:13]} (15... Rxf3 16. Bxg7 Kxg7 17. h5 $11) 16. Qe3 {[%emt 0:10:36][%cal Oh6f8]} Bg7 {[%emt 0:01:37] [#] And now ...Bxh6 would win.} 17. Bxg7 {[%emt 0:08:34]} (17. Bg5 $142) 17... Kxg7 {[%emt 0:00:06] [#]} 18. Be2 $146 {[%emt 0:00:39]} ({Predecessor:} 18. h5 Qc5 19. Qb3 Rac8 20. Kb1 b5 21. hxg6 hxg6 22. Qxe6 Ne5 23. Qxe7+ Rf7 24. Qh4 Nxf3 {0-1 Qalabegashvili,D (1308)-Dumbelovic,N (1688) EU-ch Hybrid U10 2021 (9)}) 18... Qc5 {[%emt 0:01:47]} 19. Qd2 {[%emt 0:05:25]} Qe5 {[%emt 0:03:09]} 20. Kb1 {[%emt 0:02:43]} h6 {[%emt 0:11:22]} (20... Qxe4 21. h5 Qf4 22. Qc3+ Qe5 23. Qd2 $17) 21. Rde1 {[%emt 0:06:14]} Rf4 {[%emt 0:02:40] White is weak on the dark squares} ({Don't do} 21... Qxe4 22. Bb5 Qf4 23. Qxf4 Rxf4 24. Bxd7 $16) 22. Rhf1 {[%emt 0:05:14]} Raf8 {[%emt 0:01:51]} ({Weaker is} 22... Rxe4 23. Bf3 Rxe1+ 24. Rxe1 $17) 23. Bd3 {[%emt 0:03:38]} Nc5 {[%emt 0:01:29]} 24. Rxf4 {[%emt 0:02:44]} Rxf4 {[%emt 0:00:09]} (24... Qxf4 $2 {loses.} 25. Qg2 $19) 25. Qe2 {[%emt 0:02:31]} Qd4 {[%emt 0:03:35]} 26. Rf1 {[%emt 0:01:36]} Rxf1+ {[%emt 0:00:31]} 27. Qxf1 {[%emt 0:00:01]} Nxe4 {[%emt 0:00:11] [#] White must now prevent ...Nd2+.} 28. Bxe4 {[%emt 0:01:21]} Qxe4 $19 {[%emt 0:00:05] KQ-KQ} 29. a3 {[%emt 0:00:37]} (29. Qg1 {is a better defense.}) 29... Qxg4 {[%emt 0:00:57] Black is clearly winning.} 30. b4 {[%emt 0:00:27]} Qxh4 {[%emt 0:00:45]} 31. Qb5 {[%emt 0:00:07]} Qh1+ {[%emt 0:01:13]} 32. Kb2 {[%emt 0:00:05]} Qc6 {[%emt 0:00:44] White got outplayed after the opening.   Weighted Error Value: White=0.50/Black=0.01 (flawless)} 0-1